Workbook

Sheet Impact
A2: Distinguished University Professorship (DUP) Award - Application Form | L2: Points
H3: A. Research Quality and Impact | L3: =(F23+F38+F46+F49) -> 32.66666667 | M3: min. 400 points
A4: Name: | H4: B. Research Productivity | L4: =(Productivity!F18+Productivity!F33+Productivity!F48+Productivity!F63) -> 37.75
A5: Department: | H5: C. Research Leadership | L5: =MIN(Leadership!F18+Leadership!F33+Leadership!F41+Leadership!F69,0.5*L4) -> 18.875
H6: D. Teaching Excellence | L6: =Teaching!F32 -> 96.25 | M6: min. 100 points
A7: Note: To add any row Just make double click on any cell in the row | H7: E. University and Community Service | L7: ='Community Service'!F59 -> 28 | M7: min. 50 points
K8: Total | L8: =SUM(L3:L5) -> 89.29166667
A9: A. Research Quality and Impact
A10: Publications in ISI/Scopus-indexed journals (only Q1 and Q2)
A11: JN | B11: Paper Title with Journal Name | C11: Quartile (Q) | D11: No. Au | E11: 1st/Corr | F11: Points
A12: 1 | B12: XXX | C12: 1 | D12: 3 | E12: y | F12: =IF(D12=1,IFERROR((IF(C12=1,10,8))/D12,0),IFERROR((IF(C12=1,10,8))/D12,0)+IF(E12="Y",0.25,0)) -> 3.583333333 | G12: SAMPLE
A13: 2 | B13: XXX | C13: 2 | D13: 2 | E13: N | F13: =IF(D13=1,IFERROR((IF(C13=1,10,8))/D13,0),IFERROR((IF(C13=1,10,8))/D13,0)+IF(E13="Y",0.25,0)) -> 4 | G13: SAMPLE
A14: 3 | F14: 0
A15: 4 | F15: 0
A16: 5 | F16: 0
A17: 6 | F17: 0
A18: 7 | F18: 0
A19: 8 | F19: 0
A20: 9 | F20: 0
A21: 10 | F21: 0
F22: 0
E23: Total | F23: =SUM(F12:F22) -> 7.583333333
A25: Publications in flagship conferences (only A* and A)
A26: CN | B26: Paper Title with Conference Name | D26: No. Au | E26: 1st | F26: Points
A27: 1 | B27: XXX | D27: 3 | E27: Y | F27: =IF(D27=1,IFERROR(3/D27,0),IFERROR(3/D27,0)+IF(E27="Y",0.25,0)) -> 1.25 | G27: SAMPLE
A28: 2 | B28: XXX | D28: 2 | E28: N | F28: =IF(D28=1,IFERROR(3/D28,0),IFERROR(3/D28,0)+IF(E28="Y",0.25,0)) -> 1.5 | G28: SAMPLE
A29: 3 | F29: 0
A30: 4 | F30: 0
A31: 5 | F31: 0
A32: 6 | F32: 0
A33: 7 | F33: 0
A34: 8 | F34: 0
A35: 9 | F35: 0
A36: 10 | F36: 0
F37: 0
E38: Total | F38: =SUM(F27:F37) -> 2.75
A40: Citations | B40: [Scopus: All work over the last 8 years but only counting citations in the last 4 years]
A41: Year | B41: Citations (excluding self-citation) | F41: Points
A42: 2020 | B42: 25 | F42: =B42*0.5 -> 12.5
A43: 2019 | B43: 17 | F43: =B43*0.5 -> 8.5
A44: 2018 | B44: 6 | F44: 3
A45: 2017 | B45: 2 | F45: 1
E46: Total | F46: =MIN(SUM(F42:F45),F23+F38) -> 10.33333333
A48: h5-index | E48: Points | F48: Points
A49: Number of articles cited at least h times over the last 5 years (from Scopus) | E49: 12 | F49: =E49 -> 12

Sheet Productivity
A2: Distinguished University Professorship (DUP) Award - Application Form
A4: B. Research Productivity
A5: Research-Oriented Books or Volumes | C5: A: Authored, E: Edited, C: Book chapter
A6: BN | B6: Book or Chapter Title with publisher | C6: Auth, Ed, Ch. | D6: No. Au | E6: 1st | F6: Points
A7: 1 | B7: XXX | C7: A | D7: 1 | E7: Y | F7: =IF(D7=1,IFERROR(IF(C7="A",15,IF(C7="E",10,5))/D7,0),IFERROR(IF(C7="A",15,IF(C7="E",10,5))/D7,0)+IF(AND(C7="A",E7="Y"),1,0)) -> 15 | G7: SAMPLE
A8: 2 | B8: XXX | C8: E | D8: 2 | E8: N | F8: =IF(D8=1,IFERROR(IF(C8="A",15,IF(C8="E",10,5))/D8,0),IFERROR(IF(C8="A",15,IF(C8="E",10,5))/D8,0)+IF(AND(C8="A",E8="Y"),1,0)) -> 5 | G8: SAMPLE
A9: 3 | B9: XXX | C9: C | D9: 1 | F9: 5 | G9: SAMPLE
A10: 4 | F10: 0
A11: 5 | F11: 0
A12: 6 | F12: 0
A13: 7 | F13: 0
A14: 8 | F14: 0
A15: 9 | F15: 0
A16: 10 | F16: 0
F17: 0
E18: Total | F18: =SUM(F7:F17) -> 25
A20: Other Publications in ISI/Scopus-indexed journals (NOT Q1/Q2)
A21: JN | B21: Paper Title with Journal Name | D21: No. Au | E21: 1st/Corr | F21: Points
A22: 1 | B22: XXX | D22: 1 | E22: y | F22: =IF(D22=1,IFERROR(5/D22,0),IFERROR(5/D22,0)+IF(E22="Y",0.25,0)) -> 5 | G22: SAMPLE
A23: 2 | B23: XXX | D23: 2 | E23: N | F23: =IF(D23=1,IFERROR(5/D23,0),IFERROR(5/D23,0)+IF(E23="Y",0.25,0)) -> 2.5 | G23: SAMPLE
A24: 3 | F24: 0
A25: 4 | F25: 0
A26: 5 | F26: 0
A27: 6 | F27: 0
A28: 7 | F28: 0
A29: 8 | F29: 0
A30: 9 | F30: 0
A31: 10 | F31: 0
F32: 0
E33: Total | F33: =SUM(F22:F32) -> 7.5
A35: Other Publications in conferences (NOT Flagship)
A36: CN | B36: Paper Title with Conference Name | D36: No. Au | E36: 1st | F36: Points
A37: 1 | B37: XXX | D37: 3 | E37: Y | F37: =IFERROR(1/D37,0)+IF(E37="Y",0.25,0) -> 0.5833333333 | G37: SAMPLE
A38: 2 | B38: XXX | D38: 2 | E38: N | F38: =IFERROR(1/D38,0)+IF(E38="Y",0.25,0) -> 0.5 | G38: SAMPLE
A39: 3 | F39: 0
A40: 4 | F40: 0
A41: 5 | F41: 0
A42: 6 | F42: 0
A43: 7 | F43: 0
A44: 8 | F44: 0
A45: 9 | F45: 0
A46: 10 | F46: 0
F47: 0
E48: Total | F48: =SUM(F37:F47) -> 1.083333333
A50: Patents
A51: PN | B51: Patent Title and Number | E51: No. Inv | F51: Points
A52: 1 | B52: XXX | E52: 3 | F52: =IFERROR(5/E52,0) -> 1.666666667 | G52: SAMPLE
A53: 2 | B53: XXX | E53: 2 | F53: =IFERROR(5/E53,0) -> 2.5 | G53: SAMPLE
A54: 3 | F54: 0
A55: 4 | F55: 0
A56: 5 | F56: 0
A57: 6 | F57: 0
A58: 7 | F58: 0
A59: 8 | F59: 0
A60: 9 | F60: 0
A61: 10 | F61: 0
F62: 0
E63: Total | F63: =SUM(F52:F62) -> 4.166666667

Sheet Leadership
A2: Distinguished University Professorship (DUP) Award - Application Form
A4: C. Research Leadership
A5: External Funded Research Projects (completed) | E5: P: Principle Investigator C: Co-Investigator
A6: SN | B6: Project Title | E6: Role | F6: Points
A7: 1 | B7: XXX | E7: P | F7: =IF(E7="P",6,IF(E7="C",5,0)) -> 6 | G7: SAMPLE
A8: =A7+1 -> 2 | B8: XXX | E8: C | F8: =IF(E8="P",6,IF(E8="C",5,0)) -> 5 | G8: SAMPLE
A9: =A8+1 -> 3 | F9: =IF(E9="P",6,IF(E9="C",5,0)) -> 0
A10: =A9+1 -> 4 | F10: 0
A11: =A10+1 -> 5 | F11: 0
A12: 6 | F12: 0
A13: 7 | F13: 0
A14: 8 | F14: 0
A15: 9 | F15: 0
A16: 10 | F16: 0
A17: 11 | F17: 0
F18: =SUM(F7:F17) -> 11
A20: Internal Funded Research Projects (completed) | E20: P: Principle Investigator C: Co-Investigator
A21: SN | B21: Project Title | E21: Role | F21: Points
A22: 1 | B22: XXX | E22: P | F22: =IF(E22="P",4,IF(E22="C",3,0)) -> 4 | G22: SAMPLE
A23: =A22+1 -> 2 | B23: XXX | E23: C | F23: =IF(E23="P",4,IF(E23="C",3,0)) -> 3 | G23: SAMPLE
A24: =A23+1 -> 3 | F24: =IF(E24="P",4,IF(E24="C",3,0)) -> 0
A25: =A24+1 -> 4 | F25: 0
A26: =A25+1 -> 5 | F26: 0
A27: 6 | F27: 0
A28: 7 | F28: 0
A29: 8 | F29: 0
A30: 9 | F30: 0
A31: 10 | F31: 0
A32: 11 | F32: 0
E33: Total | F33: =SUM(F22:F32) -> 7
A35: Completed MS Thesis and PhD Dissertations | E35: P: PhD , M: MS Thesis , C: Committee Member
A36: SN | B36: Thesis Title | E36: PhD/MS | F36: Points
A37: 1 | B37: XXX | E37: P | F37: =IF(E37="P",4,IF(E37="M",2,IF(E37="C",1,0))) -> 4 | G37: SAMPLE
A38: =A37+1 -> 2 | B38: XXX | E38: M | F38: =IF(E38="P",4,IF(E38="M",2,IF(E38="C",1,0))) -> 2 | G38: SAMPLE
A39: =A38+1 -> 3 | B39: XXX | E39: C | F39: 1 | G39: SAMPLE
A40: =A39+1 -> 4 | F40: =IF(E40="P",4,IF(E40="M",2,IF(E40="C",1,0))) -> 0
E41: Total | F41: =SUM(F37:F40) -> 7
A43: Overall Leadership and Recognition in Research
A44: SN | B44: Activity | F44: Points
A45: 4.a | B45: Membership in editorial board of international journals | E45: 2
B46: Member in .. | F46: =IF(ISTEXT(B46),1*$E$45,0) -> 2 | G46: SAMPLE
F47: =IF(ISTEXT(B47),1*$E$45,0) -> 0
F48: 0
A49: 4.b | B49: Keynote speech invited or delivered | E49: 5
B50: Keynote in .. | F50: =IF(ISTEXT(B50),1*$E$49,0) -> 5 | G50: SAMPLE
F51: =IF(ISTEXT(B51),1*$E$49,0) -> 0
F52: 0
A53: 4.c | B53: Membership in technical or scientific committee of international symposia or conferences | E53: 2
B54: Member in .. | F54: =IF(ISTEXT(B54),1*$E$53,0) -> 2 | G54: SAMPLE
F55: =IF(ISTEXT(B55),1*$E$53,0) -> 0
F56: 0
A57: 4.d | B57: Organizing international conference, symposium or workshop | E57: 5
B58: Organizing .. | F58: =IF(ISTEXT(B58),1*$E$57,0) -> 5 | G58: SAMPLE
F59: =IF(ISTEXT(B59),1*$E$57,0) -> 0
F60: 0
A61: 4.d | B61: Organizing nationa/local conference, symposium and workshop | E61: 2
B62: Organizing .. | F62: =IF(ISTEXT(B62),1*$E$61,0) -> 2 | G62: SAMPLE
F63: =IF(ISTEXT(B63),1*$E$61,0) -> 0
F64: 0
A65: 4.e | B65: Development of a research laboratory at KFUPM | E65: 5
B66: Developing .. | F66: =IF(ISTEXT(B66),1*$E$65,0) -> 5 | G66: SAMPLE
F67: =IF(ISTEXT(B67),1*$E$65,0) -> 0
F68: 0
E69: Total | F69: =SUM(F45:F68) -> 21

Sheet Teaching
A2: Distinguished University Professorship (DUP) Award - Application Form
A4: Teaching Excellence
A5: SN | B5: Activity | F5: Points
A6: 1 | B6: Supervision of an undergraduate senior project (regardless of the number ‎of students in the team performing the project)‎ | E6: 0.25
B7: Total number of projects | E7: 10 | F7: =E6*E7 -> 2.5 | G7: SAMPLE
A8: OR | B8: list a project in each row here .. | F8: =IF(ISTEXT(B8),1*$E$6,0) -> 0.25
F9: =IF(ISTEXT(B9),1*$E$6,0) -> 0
F10: 0
F11: 0
F12: 0
A13: 2 | B13: Supervision of coop student/project | E13: 0.5
B14: Total number of supervised students | E14: 10 | F14: =E13*E14 -> 5 | G14: SAMPLE
A15: OR | B15: list a student/project in each row here .. | F15: =IF(ISTEXT(B15),1*$E$13,0) -> 0.5
F16: =IF(ISTEXT(B16),1*$E$13,0) -> 0
F17: 0
F18: 0
F19: 0
A20: 3 | B20: Development of instructional laboratory (for teaching courses)‎ | E20: 3
B21: lab .. | F21: =IF(ISTEXT(B21),1*$E$20,0) -> 3 | G21: SAMPLE
F22: =IF(ISTEXT(B22),1*$E$20,0) -> 0
F23: 0
A24: 4 | B24: Developing and teaching a new undergraduate or graduate course | E24: 5
B25: course .. | F25: =IF(ISTEXT(B25),1*$E$24,0) -> 5 | G25: SAMPLE
F26: =IF(ISTEXT(B26),1*$E$24,0) -> 0
F27: =IF(ISTEXT(B27),1*$E$24,0) -> 0
A28: 5 | B28: Points for Student Evaluation
B29: Average rank in department for past 3 years | E29: 13 | G29: SAMPLE
B30: current number of faculty in department | E30: 60 | G30: SAMPLE
F31: =100*(1-(E29-1)/E30) -> 80
E32: Total | F32: =SUM(F6:F31) -> 96.25

Sheet Community Service
A2: Distinguished University Professorship (DUP) Award - Application Form
A4: University and Community Service
A5: SN | B5: Activity | F5: Points
A6: 1 | B6: Chair in Promotion Committee | E6: 5
B7: Comm.. | F7: =IF(ISTEXT(B7),1*$E$6,0) -> 5 | G7: SAMPLE
F8: =IF(ISTEXT(B8),1*$E$6,0) -> 0
F9: 0
A10: 2 | B10: Member in Promotion Committee | E10: 1
B11: Comm.. | F11: =IF(ISTEXT(B11),1*$E$10,0) -> 1 | G11: SAMPLE
F12: =IF(ISTEXT(B12),1*$E$10,0) -> 0
F13: 0
A14: 3 | B14: Chair in Committee meets 10 times, keeps minutes and has a final report‎ | E14: 5
B15: Comm.. | F15: =IF(ISTEXT(B15),1*$E$14,0) -> 5 | G15: SAMPLE
F16: =IF(ISTEXT(B16),1*$E$14,0) -> 0
F17: 0
A18: 4 | B18: Member in Committee meets 10 times, keeps minutes and has a final report‎ | E18: 1
B19: Comm.. | F19: =IF(ISTEXT(B19),1*$E$18,0) -> 1 | G19: SAMPLE
F20: =IF(ISTEXT(B20),1*$E$18,0) -> 0
F21: 0
A22: 5 | B22: Chair in Committee meets 5 times but < 10 times, keeps minutes and has a ‎final report | E22: 3
B23: Comm.. | F23: =IF(ISTEXT(B23),1*$E$22,0) -> 3 | G23: SAMPLE
F24: =IF(ISTEXT(B24),1*$E$22,0) -> 0
F25: 0
A26: 6 | B26: Member in Committee meets 5 times but < 10 times, keeps minutes and has a ‎final report | E26: 0.5
B27: Comm.. | F27: =IF(ISTEXT(B27),1*$E$26,0) -> 0.5 | G27: SAMPLE
F28: =IF(ISTEXT(B28),1*$E$26,0) -> 0
F29: 0
A30: 7 | B30: Chair in Committee meets < 5 times, keeps minutes and has a final report | E30: 2
B31: Comm.. | F31: =IF(ISTEXT(B31),1*$E$30,0) -> 2 | G31: SAMPLE
F32: =IF(ISTEXT(B32),1*$E$30,0) -> 0
F33: 0
A34: 8 | B34: Member in Committee meets < 5 times, keeps minutes and has a final report | E34: 0.5
B35: Comm.. | F35: =IF(ISTEXT(B35),1*$E$34,0) -> 0.5 | G35: SAMPLE
F36: =IF(ISTEXT(B36),1*$E$34,0) -> 0
F37: 0
A38: 9 | B38: Coordinating a short course | E38: 5
B39: coordinator .. | F39: =IF(ISTEXT(B39),1*$E$38,0) -> 5 | G39: SAMPLE
F40: =IF(ISTEXT(B40),1*$E$38,0) -> 0
F41: 0
A42: 10 | B42: Teaching a short course | E42: 1
B43: teaching .. | F43: =IF(ISTEXT(B43),1*$E$42,0) -> 1 | G43: SAMPLE
F44: =IF(ISTEXT(B44),1*$E$42,0) -> 0
F45: 0
A46: 11 | B46: Offering a KFUPM seminar or talk | E46: 1
B47: seminar/talk .. | F47: =IF(ISTEXT(B47),1*$E$46,0) -> 1 | G47: SAMPLE
F48: =IF(ISTEXT(B48),1*$E$46,0) -> 0
F49: 0
A50: 12 | B50: Offering a seminar or talk outside KFUPM | E50: 1
B51: seminar/talk .. | F51: =IF(ISTEXT(B51),1*$E$50,0) -> 1 | G51: SAMPLE
F52: =IF(ISTEXT(B52),1*$E$50,0) -> 0
F53: 0
A54: 13 | B54: Offering a seminar or talk outside the Kingdom | E54: 2
B55: seminar/talk .. | F55: =IF(ISTEXT(B55),1*$E$54,0) -> 2 | G55: SAMPLE
F56: =IF(ISTEXT(B56),1*$E$54,0) -> 0
F57: 0
F58: =IF(ISTEXT(B58),1*$E$54,0) -> 0
E59: Total | F59: =SUM(F6:F58) -> 28
